bitfinex-derivatives/quotes_ETHF0:USTF0_20250501
["timestamp","ask_amount","ask_price","bid_price","bid_amount"]
[1746141504201,10.4223,1838.7,1838.6,45.3834]
[1746141504403,5.4223,1838.7,1838.6,45.3834]
[1746141506395,5.4223,1838.7,1838.6,48.5912]
[1746141509901,5.4223,1838.7,1838.6,45.3834]
[1746141510406,10.4223,1838.7,1838.6,45.3834]
[1746141512304,5.4223,1838.7,1838.6,45.3834]
[1746141514907,5.4223,1838.7,1838.6,4.5834]
[1746141515107,5.4223,1838.7,1838.6,1.51041292]
[1746141516708,6.50964,1838.7,1838.6,1.51041292]
[1746141517507,5.4223,1838.7,1838.6,1.51041292]
[1746141517713,6.50964,1838.7,1838.6,1.51041292]
[1746141529423,5.4223,1838.7,1838.6,1.51041292]
[1746141529721,5.4223,1838.7,1838.6,11.00326072]
[1746141529919,5.4223,1838.7,1838.6,14.12726072]
[1746141530223,6.50964,1838.7,1838.6,14.12726072]
[1746141530920,6.50964,1838.7,1838.6,54.92726072]
[1746141531319,5.4223,1838.7,1838.6,54.92726072]
[1746141531524,3.676,1838.7,1838.6,54.92726072]
[1746141531715,5.3808,1838.7,1838.6,54.92726072]
[1746141532122,6.46814,1838.7,1838.6,54.92726072]
[1746141532616,6.46814,1838.7,1838.6,45.43441292]
[1746141532816,6.46814,1838.7,1838.6,54.92726072]
[1746141535724,5.3808,1838.7,1838.6,54.92726072]
[1746141536723,5.3808,1838.7,1838.6,58.13506072]
[1746141537821,5.3808,1838.7,1838.6,54.92726072]
[1746141539016,3.676,1838.7,1838.6,54.92726072]
[1746141540416,3.676,1838.7,1838.6,58.13506072]
[1746141541625,7.97851658,1838.7,1838.6,58.13506072]
[1746141541824,9.59981658,1838.7,1838.6,58.13506072]
[1746141542528,10.68715658,1838.7,1838.6,58.13506072]
[1746141542728,10.68715658,1838.7,1838.6,54.92726072]
[1746141542929,9.59981658,1838.7,1838.6,42.31041292]
[1746141544621,11.40628985,1838.7,1838.6,42.31041292]
[1746141545129,12.49362985,1838.7,1838.6,41.22301292]
[1746141545331,11.40628985,1838.7,1838.6,42.31041292]
[1746141548329,11.40628985,1838.7,1838.6,51.80326072]
[1746141548530,11.40628985,1838.7,1838.6,55.01306072]
[1746141549333,9.78498985,1838.7,1838.6,55.01306072]
[1746141550027,9.78498985,1838.7,1838.6,58.22086072]
[1746141551431,7.99596675,1838.7,1838.6,58.22086072]
[1746141554933,3.676,1838.7,1838.6,58.22086072]
[1746141557634,3.676,1838.7,1838.6,63.22086072]
[1746141557827,3.676,1838.7,1838.6,58.22086072]
[1746141559238,3.676,1838.8,1838.7,1.08734]
[1746141559535,3.676,1838.8,1838.7,2.49394]
[1746141559734,3.676,1838.8,1838.7,11.9867878]
[1746141564937,3.676,1838.8,1838.7,2.49394]
[1746141564938,5.2736,1838.8,1838.7,2.49394]
[1746141565338,5.2736,1838.8,1838.7,1.08734]
[1746141566842,5.2736,1838.8,1838.7,4.29514]
[1746141573443,5.2736,1838.8,1838.7,13.7879878]
[1746141574544,5.2736,1838.8,1838.7,10.5801878]
[1746141574748,5.2736,1838.8,1838.7,13.7879878]
[1746141575949,3.676,1838.8,1838.7,15.4134878]
[1746141577446,5.2902,1838.8,1838.7,15.4134878]
[1746141583048,3.676,1838.8,1838.7,15.4134878]
[1746141583247,3.6266424,1839.0,1838.7,15.4134878]
[1746141583248,3.67174241,1839.0,1838.9,10.5800678]
[1746141583439,5.14732193,1839.1,1839.0,1.08716]
[1746141583638,5.14732193,1839.1,1839.0,14.6104078]
[1746141584048,2.42891123,1839.1,1839.0,14.6104078]
[1746141584245,7.2053432,1839.2,1839.1,1.0871]
[1746141584447,7.2053432,1839.2,1839.1,16.9352478]
[1746141585152,10.8813432,1839.2,1839.1,16.9352478]
[1746141586241,7.2053432,1839.2,1839.1,16.9352478]
[1746141587553,1.678,1839.4,1839.3,1.08698]
[1746141587853,1.678,1839.4,1839.3,17.2746278]
[1746141588152,5.354,1839.4,1839.3,17.2746278]
[1746141589250,5.354,1839.4,1839.3,18.6843278]
[1746141589552,5.354,1839.4,1839.3,19.12660299]
[1746141591156,3.676,1839.4,1839.3,19.12660299]
[1746141593857,5.3785,1839.4,1839.3,19.12660299]
[1746141600364,6.8036,1839.4,1839.3,7.78178]
[1746141603161,5.3785,1839.4,1839.3,18.9832278]
[1746141603370,2.4009,1839.5,1839.4,1.08693]
[1746141603566,1.14114,1839.5,1839.4,13.7861778]
[1746141603867,7.2053432,1840.0,1839.8,1.08669]
[1746141603868,4.675,1839.9,1839.8,1.08669]
[1746141604061,4.675,1839.9,1839.8,4.57069]
[1746141604262,8.351,1839.9,1839.8,14.0635378]
[1746141604663,8.351,1839.9,1839.8,15.7721378]
[1746141605164,8.351,1839.9,1839.8,4.57069]
[1746141605566,5.3993,1839.9,1839.8,14.0635378]
[1746141609273,5.3993,1839.9,1839.8,15.7139378]
[1746141609872,5.3993,1839.9,1839.8,14.0635378]
[1746141613477,5.3993,1839.9,1839.8,15.8069378]
[1746141622279,5.3993,1839.9,1839.8,14.0635378]
[1746141622480,5.3993,1839.9,1839.8,4.57069]
[1746141623785,11.48593,1839.9,1839.7,1.08671]
[1746141624083,3.0944,1839.8,1839.7,4.57071]
[1746141625082,6.7704,1839.8,1839.7,4.57071]
[1746141626381,11.7704,1839.8,1839.7,4.57071]
[1746141627887,6.7704,1839.8,1839.7,4.57071]
[1746141629783,7.85709,1839.8,1839.7,4.57071]
[1746141631892,9.30119,1839.8,1839.7,4.57071]
[1746141632585,9.30119,1839.8,1839.7,3.484]
[1746141633390,9.30119,1839.8,1839.7,4.57075]
[1746141634591,9.30119,1839.8,1839.7,3.484]
[1746141638798,9.30119,1839.8,1839.6,1.0868]
[1746141638799,1.08675,1839.7,1839.6,4.5688]
[1746141638987,2.69565,1839.7,1839.6,14.0616478]
[1746141639291,6.37165,1839.7,1839.6,14.0616478]
[1746141640995,5.2849,1839.7,1839.6,14.0616478]
[1746141641183,6.37165,1839.7,1839.6,14.0616478]
[1746141641388,6.37165,1839.7,1839.6,15.5630478]
[1746141641595,4.76275,1839.7,1839.6,15.5630478]
[1746141642093,3.676,1839.7,1839.6,15.5630478]
[1746141643196,3.676,1839.7,1839.6,23.7708478]
[1746141646691,0.95921407,1839.7,1839.6,23.7708478]
[1746141646892,0.2737,1839.8,1839.7,1.08675]
[1746141647200,3.9497,1839.8,1839.7,13.6571978]
[1746141651899,3.676,1839.8,1839.7,13.6571978]
[1746141662611,0.95880068,1839.8,1839.7,13.6571978]
[1746141664008,0.2738,1839.9,1839.8,1.08669]
[1746141664308,0.2738,1839.9,1839.8,15.3832378]
[1746141665114,3.9498,1839.9,1839.8,15.3832378]
[1746141667412,1.23260068,1839.9,1839.8,13.7873378]
[1746141668012,1.23260068,1839.9,1839.8,15.3932378]
[1746141669623,2.81210068,1839.9,1839.8,15.3932378]
[1746141670021,2.81210068,1839.9,1839.8,4.29449]
[1746141670223,2.81210068,1839.9,1839.8,1.08669]
[1746141673024,2.81210068,1839.9,1839.8,4.29449]
[1746141674725,2.81210068,1839.9,1839.8,17.2673378]
[1746141679631,2.81210068,1839.9,1839.8,18.7073378]
[1746141681433,1.23260068,1839.9,1839.8,18.7073378]
[1746141692241,1.23260068,1839.9,1839.8,15.4995378]
[1746141692642,1.23260068,1839.9,1839.8,18.7073378]
[1746141694944,1.23260068,1839.9,1839.8,20.1837378]
[1746141695442,2.83180068,1839.9,1839.8,20.1837378]
[1746141695842,2.83180068,1839.9,1839.8,60.9837378]
[1746141697146,2.83180068,1839.9,1839.8,58.0673378]
[1746141697346,4.21270068,1839.9,1839.8,48.57449]
[1746141697535,4.21270068,1839.9,1839.8,45.09449]
[1746141697740,4.21270068,1839.9,1839.8,48.57249]
[1746141699046,4.21270068,1839.9,1839.8,45.36469]
[1746141699444,4.21270068,1839.9,1839.8,41.88669]
[1746141699646,4.21270068,1839.9,1839.8,45.36469]
[1746141703049,9.21270068,1839.9,1839.8,45.36469]
[1746141703847,4.21270068,1839.9,1839.8,45.36469]
[1746141704637,7.84671319,1839.9,1839.8,45.36469]
[1746141710751,7.84671319,1839.9,1839.8,54.8575378]
[1746141711153,7.84671319,1839.9,1839.8,58.0653378]
[1746141711354,7.84671319,1839.9,1839.8,59.7750378]
[1746141711748,6.46581319,1839.9,1839.8,59.7750378]
[1746141712045,4.86661319,1839.9,1839.8,61.2756378]
[1746141713145,6.56671319,1839.9,1839.8,61.2756378]
[1746141715455,2.93270068,1839.9,1839.8,61.2756378]
[1746141719359,1.23260068,1839.9,1839.8,61.2756378]
[1746141721354,3.63401251,1840.1,1840.0,1.08657]
[1746141721558,3.63401251,1840.1,1840.0,13.7872178]
[1746141722257,7.31001251,1840.1,1840.0,15.4905178]
[1746141730366,3.676,1840.1,1840.0,15.4905178]
[1746141735265,0.95971588,1840.1,1840.0,15.4905178]
[1746141741271,1.5882,1840.2,1840.1,1.08651]
[1746141741473,1.5882,1840.2,1840.1,18.6195578]
[1746141742071,5.2642,1840.2,1840.1,18.6195578]
[1746141742274,3.676,1840.2,1840.1,18.6195578]
[1746141751484,3.676,1840.2,1840.1,2.64781]
[1746141751485,6.8747,1840.2,1840.1,2.64781]
[1746141751782,6.8747,1840.2,1840.1,4.56151]
[1746141753189,6.8747,1840.2,1840.1,4.55851]
[1746141756991,6.8747,1840.2,1840.1,14.0513578]
[1746141757191,6.8747,1840.2,1840.1,15.6859578]
[1746141762497,3.676,1840.2,1840.1,15.6859578]
[1746141763697,3.676,1840.2,1840.1,56.4859578]
[1746141765702,6.9322,1840.2,1840.1,56.4859578]
[1746141767203,6.9322,1840.2,1840.1,54.8513578]
[1746141769103,6.9322,1840.2,1840.1,45.35851]
[1746141773304,8.01865,1840.2,1840.1,44.272]
[1746141773511,11.9322,1840.2,1840.1,4.55951]
[1746141774008,11.9322,1840.2,1840.1,45.35951]
[1746141776401,6.9322,1840.2,1840.1,45.35951]
[1746141777998,23.18347561,1840.2,1840.1,44.273]
[1746141778310,23.18347561,1840.2,1840.1,3.473]
[1746141780611,1.08657,1840.0,1839.9,40.8]
[1746141781006,1.08657,1840.0,1839.5,11.95792331]
[1746141781007,1.08681,1839.6,1839.5,11.95792331]
[1746141781213,1.08681,1839.6,1839.5,14.34408331]
[1746141781415,1.08681,1839.6,1839.5,55.14408331]
[1746141781913,1.08681,1839.6,1839.5,44.273]
[1746141782108,9.26861,1839.6,1839.5,44.273]
[1746141789219,9.26861,1839.6,1839.5,3.473]
[1746141802824,9.26861,1839.6,1839.5,5.2023]
[1746141804028,9.26861,1839.6,1839.5,3.473]
[1746141807320,1.08693,1839.4,1839.3,1.5602]
[1746141807515,1.08698,1839.3,1839.2,4.984]
[1746141807722,1.08698,1839.3,1839.2,3.472]
[1746141808129,4.76298,1839.3,1839.2,3.472]
[1746141808327,7.78368,1839.3,1839.2,44.272]
[1746141808629,7.78368,1839.3,1839.2,3.472]
[1746141809127,1.08722,1838.9,1838.8,3.2078]
[1746141809331,1.08722,1838.9,1838.8,9.7717]
[1746141809523,1.08722,1838.9,1838.8,19.2645478]
[1746141809725,1.08722,1838.9,1838.8,60.0645478]
[1746141810128,4.76322,1838.9,1838.8,60.0645478]
[1746141810925,4.76322,1838.9,1838.8,61.1518278]
[1746141811230,4.76322,1838.9,1838.8,60.0645478]
[1746141811733,4.76322,1838.9,1838.8,61.5590478]
[1746141812430,4.76322,1838.9,1838.8,58.3512478]
[1746141815733,4.76322,1838.9,1838.8,59.4385278]
[1746141816531,3.676,1838.9,1838.8,59.4385278]
[1746141817237,3.676,1838.9,1838.8,58.3512478]
[1746141817731,4.76322,1838.9,1838.8,58.3512478]
[1746141818330,6.43602,1838.9,1838.8,58.3512478]
[1746141818837,6.43602,1838.9,1838.8,54.8792478]
[1746141819036,6.43602,1838.9,1838.8,6.4132]
[1746141819337,6.43602,1838.9,1838.8,4.9645]
[1746141819535,6.43602,1838.9,1838.8,4.55728]
[1746141820539,6.43602,1838.9,1838.8,3.47]
[1746141820736,6.43602,1838.9,1838.8,4.55728]
[1746141822138,6.43602,1838.9,1838.8,3.47]
[1746141822340,6.43602,1838.9,1838.8,4.55728]
[1746141824541,6.43602,1838.9,1838.8,3.47]
[1746141839956,6.43602,1838.9,1838.8,12.9628478]
[1746141840153,6.43602,1838.9,1838.8,16.1732478]
[1746141842652,6.43602,1838.9,1838.8,12.01314682]
[1746141843560,4.76322,1838.9,1838.8,12.01314682]
[1746141844861,4.76322,1838.9,1838.8,13.10042682]
[1746141845165,3.676,1838.9,1838.8,16.30822682]
[1746141845762,3.676,1838.9,1838.8,21.30822682]
[1746141846959,3.676,1838.9,1838.8,16.30822682]
[1746141850654,3.676,1838.9,1838.8,21.30822682]
[1746141851962,3.676,1838.9,1838.8,16.30822682]
[1746141859272,2.00594,1838.9,1838.8,21.30822682]
[1746141860173,3.61960265,1839.3,1839.2,1.08704]
[1746141860474,3.61960265,1839.3,1839.2,13.35778682]
[1746141860771,5.34380265,1839.3,1839.2,13.35778682]
[1746141860970,5.34380265,1839.3,1839.2,14.94958682]
[1746141861173,9.01980265,1839.3,1839.2,14.94958682]
[1746141862262,5.4002,1839.3,1839.2,14.94958682]
[1746141863871,6.9217,1839.3,1839.2,14.94958682]
[1746141864974,5.4002,1839.3,1839.2,14.94958682]
[1746141867774,6.8429,1839.3,1839.2,14.94958682]
[1746141868376,6.8429,1839.3,1839.2,13.35778682]
[1746141874276,7.92988,1839.3,1839.2,4.55504]
[1746141875781,1.08704,1839.2,1839.1,4.29489]
[1746141876076,2.82714,1839.2,1839.1,4.5521]
[1746141876380,6.50314,1839.2,1839.1,4.5521]
[1746141878986,5.4161,1839.2,1839.1,4.5521]
[1746141879184,5.4161,1839.2,1839.1,13.35484682]
[1746141879578,5.4161,1839.2,1839.1,15.02904682]
[1746141880088,3.676,1839.2,1839.1,15.02904682]
[1746141884977,3.40210001,1839.2,1839.1,15.02904682]
[1746141885187,1.6104,1839.5,1839.4,1.08693]
[1746141885491,3.61960265,1839.6,1839.5,1.08687]
[1746141885689,3.61960265,1839.6,1839.5,14.50081682]
[1746141886187,7.29560265,1839.6,1839.5,14.50081682]
[1746141887290,7.29560265,1839.6,1839.5,55.30081682]
[1746141887486,4.52125265,1839.6,1839.5,60.30081682]
[1746141887793,0.71852397,1839.7,1839.6,9.88955682]
[1746141887993,0.71852397,1839.7,1839.6,19.72885682]
[1746141888293,4.7359132,1839.8,1839.7,9.88949682]
[1746141888592,7.63236456,1840.0,1839.9,9.88937682]
[1746141888795,6.35954456,1840.0,1839.9,13.09717682]
[1746141888994,1.5537,1840.3,1840.2,1.08645]
[1746141889185,1.5537,1840.3,1840.2,54.15419682]
[1746141889386,1.5537,1840.3,1840.2,45.35145]
[1746141889585,3.231,1840.4,1840.3,1.08639]
[1746141890190,6.907,1840.4,1840.3,1.08639]
[1746141890388,6.907,1840.4,1840.3,2.69209]
[1746141891697,3.676,1840.4,1840.3,12.96303682]
[1746141891996,3.676,1840.4,1840.3,16.17083682]
[1746141894796,3.676,1840.4,1840.3,17.62613682]
[1746141898401,3.676,1840.4,1840.3,16.02043682]
[1746141898596,5.3197,1840.4,1840.3,13.09693682]
[1746141900399,5.3197,1840.4,1840.3,4.29419]
[1746141901203,3.676,1840.4,1840.3,13.09693682]
[1746141901405,3.676,1840.4,1840.3,14.75213682]
[1746141912310,5.1442,1840.4,1840.3,14.75213682]
[1746141915013,5.1442,1840.4,1840.3,13.09693682]
[1746141916612,5.1442,1840.4,1840.3,14.78693682]
[1746141918013,5.1442,1840.4,1840.3,13.09693682]
[1746141921509,5.1442,1840.4,1840.3,14.83563682]
[1746141922618,5.1442,1840.4,1840.3,6.03289]
[1746141922817,5.1442,1840.4,1840.3,14.83563682]
[1746141923020,5.1442,1840.4,1840.3,13.09693682]
[1746141924915,3.37534776,1840.4,1840.3,16.55693682]
[1746141925114,3.2193,1840.6,1840.5,1.08628]
[1746141925415,3.2193,1840.6,1840.5,13.09682682]
[1746141925822,1.6957,1840.6,1840.5,14.71912682]
[1746141926120,5.3717,1840.6,1840.5,14.71912682]
[1746141932115,3.676,1840.6,1840.5,14.71912682]
[1746141932424,1.6199,1841.0,1840.8,8.80274682]
[1746141932729,1.6199,1841.0,1840.9,14.85028682]
[1746141932920,1.6199,1841.0,1840.9,18.04768682]
[1746141933116,5.2959,1841.0,1840.9,18.04768682]
[1746141933722,3.676,1841.0,1840.9,18.04768682]
[1746141936229,5.3958,1841.0,1840.9,18.04768682]
[1746141938332,3.676,1841.0,1840.9,18.04768682]
[1746141943433,5.1915,1841.0,1840.9,4.54604]
[1746141945932,3.676,1841.0,1840.9,4.54604]
[1746141946131,3.676,1841.0,1840.9,6.21864]
[1746141946734,3.676,1841.0,1840.9,15.02138682]
[1746141949737,3.676,1841.0,1840.9,55.82138682]
[1746141952137,3.676,1841.0,1840.9,54.14878682]
[1746141953136,3.676,1841.0,1840.9,45.34604]
[1746141953543,5.1004,1841.0,1840.9,45.34604]
[1746141956342,5.1004,1841.0,1840.9,4.54404]
[1746141956939,6.7425,1841.0,1840.9,45.34404]
[1746141959845,6.7425,1841.0,1840.9,54.14678682]
[1746141959846,5.3181,1841.0,1840.9,54.14678682]
[1746141960139,5.3181,1841.0,1840.9,55.67918682]
[1746141960339,5.3181,1841.0,1840.9,54.14678682]
[1746141961342,5.3181,1841.0,1840.9,45.34404]
[1746141965645,5.3181,1841.0,1840.9,44.258]
[1746141965845,5.3181,1841.0,1840.9,45.34404]
[1746141966439,3.676,1841.0,1840.9,54.14678682]
[1746141966744,3.676,1841.0,1840.9,57.36618682]
[1746141967145,3.676,1841.0,1840.9,13.34678682]
[1746141967445,3.676,1841.0,1840.9,4.54404]
[1746141969542,5.3177,1841.0,1840.9,4.54404]
[1746141970543,11.40368,1841.0,1840.9,3.458]
[1746141971645,10.3177,1841.0,1840.9,4.54404]
[1746141972348,5.3177,1841.0,1840.9,4.54404]
[1746141975752,6.40368,1841.0,1840.9,3.458]
[1746141976254,11.40368,1841.0,1840.9,3.458]
[1746141976858,11.40368,1841.0,1840.9,4.54404]
[1746141977866,11.40368,1841.0,1840.9,3.458]
[1746141978364,6.40368,1841.0,1840.9,3.458]
[1746141978565,6.40368,1841.0,1840.9,4.54404]
[1746141978865,7.0962289,1841.0,1840.9,4.54404]
[1746141980269,7.0962289,1841.0,1840.9,3.458]
[1746141980673,7.0962289,1841.0,1840.9,4.54404]
[1746141981566,7.0962289,1841.0,1840.9,3.458]
[1746141981868,12.9342289,1841.0,1840.9,3.458]
[1746141982270,12.24168,1841.0,1840.9,3.458]
[1746141982469,1.08616,1840.7,1840.6,3.457]
[1746141983172,4.76216,1840.7,1840.6,4.54322]
[1746141984867,3.676,1840.7,1840.6,4.54322]
[1746141985073,3.676,1840.7,1840.6,14.99626682]
[1746141985968,3.676,1840.7,1840.6,19.99626682]
[1746141986271,3.676,1840.7,1840.6,14.99626682]
[1746141986471,3.676,1840.7,1840.6,18.20406682]
[1746141986872,3.676,1840.7,1840.6,23.20406682]
[1746141987670,3.676,1840.7,1840.6,64.00406682]
[1746141989075,3.676,1840.7,1840.6,59.46084682]
[1746141989275,3.676,1840.7,1840.5,6.487]
[1746141989477,1.6875,1840.6,1840.5,8.0913]
[1746141989677,1.6875,1840.6,1840.5,48.8913]
[1746141989978,1.6875,1840.6,1840.5,57.69404682]
[1746141990174,5.3635,1840.6,1840.5,57.69404682]
[1746141991574,5.3635,1840.6,1840.5,58.78032682]
[1746141994176,3.676,1840.6,1840.5,58.78032682]
[1746141995574,3.676,1840.6,1840.5,55.32332682]
[1746141995772,3.676,1840.6,1840.5,44.257]
[1746141996275,5.3869,1840.6,1840.5,45.34328]
[1746141997671,5.3869,1840.6,1840.5,4.54328]
[1746141999875,6.47312,1840.6,1840.5,4.54328]
[1746142000481,6.47312,1840.6,1840.5,3.457]
[1746142000680,6.47312,1840.6,1840.5,4.54328]
[1746142000881,6.47312,1840.6,1840.5,3.457]
[1746142001075,6.47312,1840.6,1840.5,4.54328]
[1746142002582,6.47312,1840.6,1840.5,3.457]
[1746142004779,12.31112,1840.6,1840.5,3.457]
[1746142006586,15.51892,1840.6,1840.5,3.457]
[1746142020096,1.08639,1840.3,1840.2,49.92291]
[1746142020488,1.08639,1840.3,1840.2,58.72565682]
[1746142020993,1.08639,1840.3,1840.2,57.63924682]
[1746142021291,1.08639,1840.3,1840.2,58.72569682]
[1746142021292,4.76239,1840.3,1840.2,58.72569682]
[1746142021793,4.76239,1840.3,1840.2,16.83924682]
[1746142021985,1.08657,1840.0,1839.9,3.457]
[1746142022187,1.08657,1840.0,1839.9,8.1089]
[1746142022493,1.08657,1840.0,1839.9,16.91164682]
[1746142023391,4.76257,1840.0,1839.9,16.91164682]
[1746142023786,6.36547,1840.0,1839.9,16.91164682]
[1746142026393,4.76257,1840.0,1839.9,17.99827682]
[1746142028198,4.76257,1840.0,1839.9,16.91164682]
[1746142028396,4.76257,1840.0,1839.9,17.99827682]
[1746142028587,4.76257,1840.0,1839.9,16.91164682]
[1746142028895,4.76257,1840.0,1839.9,17.99827682]
[1746142029996,3.676,1840.0,1839.9,17.99827682]
[1746142030294,4.76257,1840.0,1839.9,16.91164682]
[1746142030988,3.676,1840.0,1839.9,21.20607682]
[1746142031183,3.676,1840.0,1839.9,26.20607682]
[1746142032493,3.676,1840.0,1839.9,67.00607682]
[1746142036395,3.676,1840.0,1839.9,62.00607682]
[1746142039193,5e-06,1840.0,1839.9,67.00607682]
[1746142040195,9.45728352,1840.6,1840.5,1.08628]
[1746142040383,9.45728352,1840.6,1840.5,13.34502682]
[1746142040384,3.61928352,1840.6,1840.5,13.34502682]
[1746142040588,3.61928352,1840.6,1840.5,4.54228]
[1746142040788,5.32568352,1840.6,1840.5,4.54228]
[1746142040995,5.32568352,1840.6,1840.5,6.19778]
[1746142041193,9.00168352,1840.6,1840.5,6.19778]
[1746142045399,5.3824,1840.6,1840.5,6.19778]
[1746142047195,5.3824,1840.6,1840.5,4.54228]
[1746142055409,6.46862,1840.6,1840.5,4.54228]
[1746142056405,5.3824,1840.6,1840.5,4.54228]
[1746142056608,6.46862,1840.6,1840.5,4.54228]
[1746142057811,5.3824,1840.6,1840.5,4.54228]
[1746142058406,6.46862,1840.6,1840.5,4.54228]
[1746142059308,5.3824,1840.6,1840.5,4.54228]
[1746142061511,5.3824,1840.6,1840.5,18.13082682]
[1746142063008,3.676,1840.6,1840.5,18.13082682]
[1746142068911,15.60022,1840.6,1840.5,3.456]
[1746142069309,1.08628,1840.5,1840.3,1.08634]
[1746142069511,3.285,1840.4,1840.3,1.08634]
[1746142070117,6.961,1840.4,1840.3,1.08634]
[1746142072420,6.961,1840.4,1840.3,4.29414]
[1746142077223,6.961,1840.4,1840.3,1.08634]
[1746142078625,8.04733,1840.4,1840.3,1.08634]
[1746142079426,6.961,1840.4,1840.2,8.2524]
[1746142079619,1.6199,1840.3,1840.2,9.33885]
[1746142080223,5.2959,1840.3,1840.2,9.33885]
[1746142080425,6.38229,1840.3,1840.2,6.6618]
[1746142080727,6.38229,1840.3,1840.1,6.08147]
[1746142080926,4.34385,1840.2,1840.1,14.88421682]
[1746142081120,8.01985,1840.2,1840.1,14.88421682]
[1746142081319,8.01985,1840.2,1840.1,12.25674682]
[1746142082227,8.01985,1840.2,1840.1,13.34325682]
[1746142088229,8.01985,1840.2,1840.1,12.25674682]
[1746142088730,1.08663,1839.9,1839.8,4.54166]
[1746142088931,1.08663,1839.9,1839.8,13.34440682]
[1746142089133,4.76263,1839.9,1839.8,13.34440682]
[1746142089623,6.30453,1839.9,1839.8,13.34440682]
[1746142094534,5.2179,1839.9,1839.8,13.34440682]
[1746142094735,5.2179,1839.9,1839.8,14.92210682]
[1746142094936,7.90973,1839.9,1839.8,13.83544682]
[1746142095135,7.90973,1839.9,1839.8,12.25774682]
[1746142095737,1.08675,1839.7,1839.6,67.24836194]
[1746142095940,1.08675,1839.7,1839.6,26.34191876]
[1746142096234,4.76275,1839.7,1839.6,26.34191876]
[1746142096436,3.676,1839.7,1839.6,26.34191876]
[1746142097235,3.676,1839.7,1839.6,16.59775682]
[1746142111451,5.365,1839.7,1839.6,7.79501]
[1746142115057,5.365,1839.7,1839.6,6.10091]
[1746142115458,5.365,1839.7,1839.6,4.54081]
[1746142118557,6.45175,1839.7,1839.6,4.54081]
[1746142119062,5.365,1839.7,1839.6,4.54081]
[1746142119658,6.45175,1839.7,1839.6,3.454]
[1746142120662,5.365,1839.7,1839.4,1.08688]
[1746142120863,1.08691,1839.5,1839.4,1.08688]
[1746142121061,4.76291,1839.5,1839.4,1.08688]
[1746142121259,7.91621,1839.5,1839.4,1.08688]
[1746142121664,1.08693,1839.4,1839.3,6.03623]
[1746142121865,2.66213,1839.4,1839.3,6.03623]
[1746142122065,5.2512,1839.4,1839.3,14.83897682]
[1746142122266,6.33813,1839.4,1839.3,13.34267682]
[1746142127370,5.2512,1839.4,1839.3,13.34267682]
[1746142128770,5.2512,1839.4,1839.3,14.98867682]
[1746142128969,5.2512,1839.4,1839.3,19.80427682]
[1746142129573,3.676,1839.4,1839.3,19.80427682]
[1746142132875,3.676,1839.4,1839.3,16.59647682]
[1746142134972,5.3668,1839.4,1839.3,16.59647682]
[1746142138173,5.3668,1839.4,1839.3,3.453]
[1746142138374,9.64313,1839.4,1839.3,3.453]
[1746142138574,9.64313,1839.4,1839.3,4.53998]
[1746142140573,12.85093,1839.4,1839.3,3.453]
[1746142140777,12.85093,1839.4,1839.3,4.53998]
[1746142141076,12.85093,1839.4,1839.3,3.453]
[1746142141277,12.85093,1839.4,1839.3,4.53998]
[1746142142178,12.85093,1839.4,1839.3,3.453]
[1746142143176,16.47021352,1839.4,1839.3,3.453]
[1746142146572,12.85093,1839.4,1839.3,3.453]
[1746142153775,16.47021352,1839.4,1839.3,3.453]
[1746142154481,13.26241352,1839.4,1839.3,3.453]
[1746142157277,13.26241352,1839.4,1839.3,4.53998]
[1746142157484,13.26241352,1839.4,1839.3,3.453]
[1746142157681,12.17548352,1839.4,1839.3,6.07318]
[1746142162884,12.17548352,1839.4,1839.3,14.87592682]
[1746142163479,13.26241352,1839.4,1839.3,14.87592682]
[1746142163680,1.08699,1839.3,1839.1,4.28346]
[1746142163884,1.5882,1839.2,1839.1,11.45554682]
[1746142164186,5.2642,1839.2,1839.1,11.45554682]
[1746142164386,6.9509,1839.2,1839.1,11.45554682]
[1746142167686,6.9509,1839.2,1839.1,9.88984682]
[1746142167888,8.03794,1839.2,1839.1,1.0871]
[1746142168089,1.08717,1839.1,1839.0,1.08713]
[1746142168277,3.2088,1839.1,1839.0,9.88987682]
[1746142168482,4.2959,1839.1,1839.0,1.08713]
[1746142168687,3.2088,1839.1,1839.0,1.08713]
[1746142169091,12.7228,1839.1,1839.0,1.08713]
[1746142171398,18.84440533,1839.1,1839.0,1.08713]
[1746142171985,18.84440533,1839.1,1839.0,2.62313]
[1746142172191,15.63560533,1839.1,1839.0,14.63367682]
[1746142174698,15.63560533,1839.1,1839.0,18.08667682]
[1746142174897,9.79760533,1839.1,1839.0,18.08667682]
[1746142175490,3.676,1839.1,1839.0,18.08667682]
[1746142187099,3.676,1839.1,1839.0,14.87887682]
[1746142187301,3.676,1839.1,1839.0,18.08667682]
[1746142189706,3.676,1839.1,1839.0,9.28393]
[1746142189899,8.4426,1839.1,1839.0,9.28393]
[1746142190905,8.4426,1839.1,1839.0,7.74793]
[1746142193204,8.4426,1839.1,1839.0,4.54013]
[1746142193707,12.76320057,1839.1,1839.0,4.54013]
[1746142198920,14.56428658,1839.1,1839.0,4.54013]
[1746142202221,9.13582891,1839.1,1839.0,4.54013]
[1746142205626,12.7656262,1839.1,1839.0,4.54013]
[1746142206225,13.8527262,1839.1,1839.0,4.54013]
[1746142207630,13.8527262,1839.1,1838.8,9.1382]
[1746142207631,1.08722,1838.9,1838.8,3.2078]
[1746142207828,1.08722,1838.9,1838.8,12.01054682]
[1746142208022,1.08734,1838.7,1838.6,3.2078]
[1746142208227,1.0874,1838.6,1838.5,7.23105074]
[1746142208422,1.5737,1838.6,1838.5,17.12125756]
[1746142208622,6.92532,1838.8,1838.5,19.48579756]
[1746142208824,1.5737,1838.7,1838.6,4.2265]
[1746142209031,5.838,1838.8,1838.7,9.89008682]
[1746142209326,6.92528,1838.8,1838.7,11.49298682]